bitfinex/quotes_ETHUSD_20240925
["timestamp","ask_amount","ask_price","bid_price","bid_amount"]
[1727294449881,4.34279,2582.0,2581.2,3.87415]
[1727294450031,3.8732,2581.9,2581.1,4.42429]
[1727294450229,7.74642,2581.9,2581.1,4.42429]
[1727294450471,3.8732,2581.9,2581.1,5.4203635]
[1727294450933,7.74642,2581.9,2581.1,5.4203635]
[1727294451137,3.8732,2581.9,2581.1,1.5460735]
[1727294451336,3.8732,2581.9,2581.2,3.87415]
[1727294451564,3.8732,2581.9,2581.2,4.88426135]
[1727294451968,3.87327,2581.8,2581.2,1.01011135]
[1727294452131,3.87313,2581.9,2581.2,4.88427135]
[1727294452353,0.4939434,2582.0,2581.2,4.88427135]
[1727294452595,0.0241834,2582.0,2581.4,0.8026]
[1727294452875,3.87313,2581.9,2581.4,0.8026]
[1727294453596,0.0241834,2582.0,2581.6,3.87355]
[1727294453742,0.0241834,2582.0,2581.8,3.87326]
[1727294453933,0.0241834,2582.0,2581.7,0.8026]
[1727294453934,0.0241834,2582.0,2581.9,0.467586]
[1727294454183,0.0241834,2582.0,2581.3,0.54342713]
[1727294454184,3.87323,2581.9,2581.3,0.54342713]
[1727294454335,3.87311,2581.9,2581.4,0.8026]
[1727294454596,3.87332,2581.8,2581.4,0.8026]
[1727294454794,3.87349,2581.7,2581.4,0.8026]
[1727294455637,3.87349,2581.7,2581.2,0.8026]
[1727294455835,5.01814934,2581.9,2581.2,0.8026]
[1727294455836,8.89139934,2581.9,2581.2,0.8026]
[1727294456072,4.26294934,2581.9,2581.2,0.8026]
[1727294456239,3.87322,2581.9,2581.3,3.874]
[1727294456437,3.87327,2581.8,2581.2,0.8026]
[1727294456753,3.87322,2581.9,2581.2,4.67672]
[1727294456954,3.87327,2581.8,2581.2,5.586815]
[1727294457263,3.87327,2581.8,2581.2,1.712695]
[1727294457471,3.87356,2581.7,2581.2,0.8026]
[1727294457651,3.87385,2581.5,2580.8,3.87464]
[1727294457837,3.87385,2581.5,2580.9,3.0]
[1727294458276,3.87383,2581.5,2580.9,3.0]
[1727294458488,3.87348,2581.7,2581.0,0.763654]
[1727294458782,0.0241834,2582.0,2581.3,3.87393]
[1727294458939,3.8971834,2582.0,2581.3,3.87393]
[1727294459754,0.0241834,2582.0,2581.3,3.87393]
[1727294459942,0.0241834,2582.0,2581.4,4.261233]
[1727294460175,0.0241834,2582.0,2581.4,0.387393]
[1727294460176,3.87334,2581.8,2581.4,0.387393]
[1727294460355,3.87334,2581.8,2581.1,4.63618]
[1727294460356,3.87325,2581.9,2581.2,0.55]
[1727294460870,3.87325,2581.9,2581.2,4.42407]
[1727294461275,3.87321,2581.9,2581.2,4.42407]
[1727294461601,3.87321,2581.9,2581.1,4.63612]
[1727294461944,3.87341,2581.7,2581.1,0.7619]
[1727294462187,3.87351,2581.7,2581.1,0.7619]
[1727294462985,0.0241834,2582.0,2581.2,3.87413]
[1727294463295,0.0241834,2582.0,2581.5,3.87371]
[1727294463520,0.0241834,2582.0,2581.7,3.87341]
[1727294463784,0.0241834,2582.0,2581.8,0.07715615]
[1727294466098,0.0241834,2582.0,2581.6,4.337121]
[1727294466457,0.0241834,2582.0,2581.8,0.75]
[1727294466664,0.0739918,2583.6,2582.9,3.87149]
[1727294466993,0.0739918,2583.6,2582.3,3.87244]
[1727294466994,0.0739918,2583.6,2583.1,3.87131]
[1727294467202,0.0739918,2583.6,2583.1,3.55]
[1727294467420,0.0739918,2583.6,2583.4,3.87085]
[1727294467746,0.0739918,2583.6,2583.3,0.7607]
[1727294468379,0.0739918,2583.6,2583.3,3.7607]
[1727294468584,0.0739918,2583.6,2583.3,4.578877]
[1727294468754,0.0739918,2583.6,2583.3,0.7607]
[1727294471188,0.0739918,2583.6,2583.3,4.6317]
[1727294471395,0.0739918,2583.6,2583.3,0.4365]
[1727294472609,0.0739918,2583.6,2583.2,3.87105]
[1727294473022,0.0739918,2583.6,2583.2,7.7421]
[1727294473378,0.0739918,2583.6,2583.2,3.87105]
[1727294473750,0.0739918,2583.6,2583.2,4.2968699]
[1727294473905,0.0739918,2583.6,2583.3,3.87092]
[1727294474858,0.0739918,2583.6,2583.2,5.0612699]
[1727294475158,0.0739918,2583.6,2583.2,8.50651]
[1727294475444,0.0739918,2583.6,2583.3,3.87101]
[1727294475742,0.0739918,2583.6,2583.2,8.50653]
[1727294475928,0.0739918,2583.6,2583.3,3.87101]
[1727294476304,0.0739918,2583.6,2583.2,4.63545]
[1727294476504,0.0739918,2583.6,2583.3,3.871]
[1727294476741,0.0739918,2583.6,2583.5,3.87071]
[1727294477950,0.0739918,2583.6,2583.3,4.721575]
[1727294478164,0.0739918,2583.6,2583.4,3.87082]
[1727294478602,0.0739918,2583.6,2583.2,4.63555]
[1727294479042,0.0739918,2583.6,2583.3,3.87099]
[1727294479218,0.0739918,2583.6,2583.4,3.87076]
[1727294480416,0.0739918,2583.6,2583.3,3.87099]
[1727294480744,0.0739918,2583.6,2583.2,0.7644]
[1727294480926,3.9445718,2583.6,2583.0,3.0]
[1727294481647,3.9445718,2583.6,2583.0,6.87139]
[1727294481853,3.87088,2583.4,2582.9,0.8172]
[1727294482022,0.807,2583.5,2582.6,0.7682]
[1727294482232,3.87145,2583.1,2582.5,3.87216]
[1727294482573,3.87145,2583.1,2582.3,4.64071]
[1727294482574,4.67847,2583.0,2582.3,4.64071]
[1727294482753,4.67847,2583.0,2582.3,8.51314]
[1727294482958,3.87161,2582.9,2582.3,4.64063]
[1727294483163,0.807,2583.0,2582.3,0.7682]
[1727294483462,3.87148,2583.0,2582.5,3.8721]
[1727294483873,3.87148,2583.0,2582.3,4.64057]
[1727294484027,0.807,2583.3,2582.8,3.87172]
[1727294484880,4.67803,2583.3,2582.7,3.87178]
[1727294485031,7.7425,2583.2,2582.6,3.87204]
[1727294485373,3.87125,2583.2,2582.7,3.8719]
[1727294485579,3.87125,2583.2,2582.6,3.87204]
[1727294485861,3.87158,2583.0,2582.4,3.87227]
[1727294486231,3.87158,2583.0,2582.5,3.87218]
[1727294486427,3.87158,2583.0,2582.4,3.87234]
[1727294486642,7.74257,2583.2,2582.5,3.87215]
[1727294486935,3.87133,2583.1,2582.5,3.87215]
[1727294487137,0.807,2583.3,2582.7,3.87189]
[1727294487341,4.67802,2583.3,2582.7,3.87189]
[1727294487537,0.807,2583.3,2582.8,3.87165]
[1727294487741,0.807,2583.3,2582.9,3.87158]
[1727294488122,0.9026918,2583.6,2583.0,3.87144]
[1727294488351,4.7733518,2583.6,2583.0,0.850452]
[1727294488538,3.87073,2583.5,2583.0,0.850452]
[1727294488867,0.9026918,2583.6,2583.0,4.721912]
[1727294489026,3.87072,2583.5,2583.0,0.850452]
[1727294489221,3.87072,2583.5,2582.9,3.87148]
[1727294489222,3.87089,2583.4,2582.7,3.87189]
[1727294489427,7.7419,2583.4,2582.7,7.74371]
[1727294489669,3.87071,2583.5,2582.9,3.8715]
[1727294490048,3.87071,2583.5,2582.9,7.74303]
[1727294490372,3.87071,2583.5,2582.9,8.517333]
[1727294490739,3.87071,2583.5,2582.9,8.517323]
[1727294490959,3.87071,2583.5,2582.9,4.645803]
[1727294491266,3.87071,2583.5,2582.9,8.517333]
[1727294491469,3.87071,2583.5,2582.9,7.74303]
[1727294491631,3.87071,2583.5,2582.9,3.8715]
[1727294491834,3.87091,2583.4,2582.8,3.87164]
[1727294492053,3.87104,2583.3,2582.7,3.8718]
[1727294492364,0.387104,2583.3,2582.7,3.8718]
[1727294492567,3.8709,2583.4,2582.7,7.74356]
[1727294492774,3.8709,2583.4,2582.8,3.87168]
[1727294493273,3.87102,2583.3,2582.7,3.87176]
[1727294493568,3.87102,2583.3,2582.7,7.74355]
[1727294493768,3.87102,2583.3,2582.7,8.595265]
[1727294494140,3.87089,2583.4,2582.9,3.87152]
[1727294494400,3.9445918,2583.6,2582.8,0.8116]
[1727294494671,3.9445918,2583.6,2582.9,3.87159]
[1727294494672,3.87087,2583.4,2582.9,3.87159]
[1727294494834,3.87087,2583.4,2582.9,4.8122445]
[1727294495447,3.87077,2583.5,2582.9,4.8122445]
[1727294495945,3.87089,2583.4,2582.9,4.8122445]
[1727294496140,3.87102,2583.3,2582.9,0.9406545]
[1727294496559,3.87102,2583.3,2582.8,4.68324]
[1727294496744,3.87087,2583.4,2582.9,3.8716]
[1727294497185,7.74184,2583.4,2582.8,4.68324]
[1727294497483,3.87118,2583.2,2582.7,3.87185]
[1727294497878,0.8068,2583.3,2582.8,3.87175]
[1727294498049,4.67783,2583.3,2582.8,3.87175]
[1727294498482,0.0739918,2583.6,2582.8,3.87175]
[1727294498483,0.9030918,2583.6,2582.8,3.87175]
[1727294498647,3.87092,2583.4,2582.9,3.87154]
[1727294499457,7.74192,2583.4,2582.8,4.340085]
[1727294499658,3.87092,2583.4,2582.9,3.87157]
[1727294501458,3.87105,2583.3,2582.8,4.340015]
[1727294501654,3.87117,2583.2,2582.7,3.8719]
[1727294501858,0.7746,2583.1,2582.7,3.8719]
[1727294502300,0.7746,2583.1,2582.8,3.87174]
[1727294502460,4.64562,2583.3,2582.8,3.87174]
[1727294503071,0.7746,2583.3,2582.8,4.727269]
[1727294503272,0.7746,2583.3,2582.9,3.87161]
[1727294503506,4.64573,2583.3,2582.8,4.727269]
[1727294503661,0.7746,2583.3,2582.8,3.87167]
[1727294503860,0.0739918,2583.6,2583.2,3.87106]
[1727294504491,0.0739918,2583.6,2583.2,7.74214]
[1727294504701,0.0739918,2583.6,2583.3,3.87095]
[1727294505033,0.0739918,2583.6,2583.2,4.725684]
[1727294505961,0.0739918,2583.6,2583.3,3.87092]
[1727294506168,0.0739918,2583.6,2583.2,4.725684]
[1727294506365,0.0739918,2583.6,2583.1,0.8041]
[1727294506366,3.9445618,2583.6,2583.1,0.8041]
[1727294506674,3.87082,2583.5,2583.0,7.7427]
[1727294506906,3.87119,2583.2,2582.8,4.66547]
[1727294507206,3.87135,2583.1,2582.6,3.7938]
[1727294507422,3.87135,2583.1,2582.6,5.4787584]
[1727294507569,4.64856,2583.2,2582.7,3.87179]
[1727294507998,4.64856,2583.2,2582.6,5.4787584]
[1727294508313,0.7774,2583.2,2582.8,3.87175]
[1727294508469,3.87086,2583.4,2582.9,3.87158]
[1727294508670,3.87104,2583.3,2582.8,3.87175]
[1727294509176,3.87108,2583.3,2582.8,3.87168]
[1727294509378,3.87108,2583.3,2582.8,7.74336]
[1727294509572,3.87108,2583.3,2582.8,3.87168]
[1727294510619,4.60005462,2583.3,2582.8,3.87168]
[1727294511544,3.8712,2583.2,2582.7,3.87184]
[1727294511948,3.8712,2583.2,2582.6,5.4787684]
[1727294512108,4.66437365,2583.3,2582.8,3.87175]
[1727294512309,3.9754262,2583.3,2582.8,3.87175]
[1727294512535,4.76877985,2583.3,2582.8,3.87175]
[1727294512718,0.89775985,2583.3,2582.9,3.87159]
[1727294512919,4.76876985,2583.3,2582.9,3.87159]
[1727294515021,4.76876985,2583.3,2582.7,3.87186]
[1727294515022,4.66452365,2583.2,2582.7,3.87191]
[1727294515369,0.89775985,2583.2,2582.7,3.87191]
[1727294515646,4.76893985,2583.2,2582.7,4.725692]
[1727294515805,3.87139,2583.1,2582.7,0.853782]
[1727294516009,4.76893985,2583.2,2582.7,4.725672]
[1727294516213,4.76893985,2583.2,2582.7,8.597512]
[1727294516523,4.76893985,2583.2,2582.8,3.87176]
[1727294517358,0.1044062,2583.2,2583.0,3.87137]
[1727294517510,3.9755862,2583.2,2582.9,0.8597382]
[1727294517710,3.9755862,2583.2,2582.8,3.87168]
[1727294520243,7.8468962,2583.2,2582.7,3.87189]
[1727294520430,3.9755862,2583.2,2582.7,3.87189]
[1727294520631,4.76893985,2583.2,2582.7,3.87189]
[1727294520835,4.76893985,2583.2,2582.8,3.87173]
[1727294521556,4.76893985,2583.2,2582.7,3.87189]
[1727294521857,4.76893985,2583.2,2582.8,3.87173]
[1727294522457,0.89775985,2583.2,2582.8,3.87173]
[1727294522758,0.89775985,2583.2,2582.9,3.87158]
[1727294523062,0.89775985,2583.2,2582.8,3.87175]
[1727294524340,0.89775985,2583.2,2582.8,3.87168]
[1727294524543,0.1044062,2583.2,2583.0,3.87146]
[1727294524933,0.1044062,2583.2,2582.9,4.31768903]
[1727294525543,0.89775985,2583.2,2582.9,4.31768903]
[1727294525825,0.1044062,2583.2,2583.1,4.64081]
[1727294526043,0.1044062,2583.2,2583.1,5.54435135]
[1727294526452,0.1044062,2583.2,2583.1,6.36776002]
[1727294526661,0.1044062,2583.2,2583.1,6.36779807]
[1727294526851,0.1044062,2583.2,2583.1,7.60296815]
[1727294527455,0.1044062,2583.2,2583.1,10.60296815]
[1727294527667,0.1044062,2583.2,2583.1,11.94993742]
[1727294528816,0.1044062,2583.2,2583.1,11.15296815]
[1727294529281,0.1044062,2583.2,2583.1,11.94993742]
[1727294529585,0.1044062,2583.2,2583.1,8.54435135]
[1727294530041,0.1044062,2583.2,2582.9,0.44609903]
[1727294530243,0.1044062,2583.2,2582.9,3.0]
[1727294530749,0.1044062,2583.2,2582.9,6.87158]
[1727294531453,0.1044062,2583.2,2582.9,6.87153]
[1727294531643,0.1044062,2583.2,2583.1,3.87131]
[1727294532958,0.1044062,2583.2,2583.1,4.945594]
[1727294533945,0.1044062,2583.2,2583.1,12.16210237]
[1727294534289,0.1044062,2583.2,2583.1,12.56154263]
[1727294534489,0.1044062,2583.2,2583.1,11.3651331]
[1727294534690,0.1044062,2583.2,2583.1,12.17773064]
[1727294535182,0.1044062,2583.2,2583.1,11.3651331]
[1727294535380,0.1044062,2583.2,2583.1,12.17773828]
[1727294536042,0.1044062,2583.2,2583.1,10.10119918]
[1727294536240,0.1044062,2583.2,2583.1,12.19112191]
[1727294536681,0.1044062,2583.2,2583.1,11.37851673]
[1727294537040,0.1044062,2583.2,2583.1,9.288594]
[1727294551432,0.1044062,2583.2,2583.1,11.37887855]
[1727294551606,0.1044062,2583.2,2583.1,12.19148373]
[1727294551813,1.62295365,2584.1,2583.7,3.87037]
[1727294551814,0.8296,2584.1,2583.7,3.87037]
[1727294552118,0.8296,2584.1,2583.7,4.257407]
[1727294552675,4.69951,2584.1,2583.7,0.387037]
[1727294553149,5.49286365,2584.1,2583.7,0.387037]
[1727294553638,4.69951,2584.1,2583.7,0.387037]
[1727294553935,0.8296,2584.1,2583.7,4.257387]
[1727294554140,0.8296,2584.1,2583.8,0.50272322]
[1727294554345,0.8296,2584.1,2583.9,3.8701]
[1727294554931,3.9161983,2584.2,2583.8,0.4257387]
[1727294555164,3.9161983,2584.2,2583.9,0.42960887]
[1727294557958,0.0465183,2584.2,2583.9,0.42960887]
[1727294558857,3.9162083,2584.2,2583.9,0.42960887]
[1727294559215,0.0465183,2584.2,2583.9,0.42960887]
[1727294559417,0.0465183,2584.2,2583.8,3.87026]
[1727294559852,3.86982,2584.1,2583.6,4.66635]
[1727294560053,3.86982,2584.1,2583.7,3.87041]
[1727294560355,3.86982,2584.1,2583.8,0.853676]
[1727294560522,3.9161783,2584.2,2583.8,0.853676]
[1727294561558,0.7912,2583.6,2583.2,3.8711]
[1727294561761,0.7912,2583.6,2583.1,1.074284]
[1727294561762,3.87116,2583.2,2583.1,1.074284]
[1727294561946,3.87116,2583.2,2582.7,4.63621]
[1727294562267,3.87148,2583.0,2582.8,0.463621]
[1727294562568,3.87148,2583.0,2582.5,3.87212]
[1727294562569,3.87148,2583.0,2582.4,0.7644]
[1727294562726,3.87148,2583.0,2582.5,3.8722]
[1727294562727,7.74303,2583.0,2582.5,3.8722]
[1727294562925,3.87148,2583.0,2582.5,3.8722]
[1727294563163,3.87148,2583.0,2582.6,0.46366]
[1727294563468,3.87148,2583.0,2582.3,3.8724]
[1727294563469,3.8718,2582.8,2582.3,3.8724]
[1727294563649,0.7912,2582.7,2582.4,3.87233]
[1727294563961,0.7912,2582.7,2582.3,3.87251]
[1727294564199,0.7912,2582.7,2582.4,0.387251]
[1727294564322,3.87216,2582.6,2582.1,0.7644]
[1727294564526,4.66311,2582.7,2582.2,3.87264]
[1727294565563,3.87216,2582.6,2582.2,3.0]
[1727294565748,4.66311,2582.7,2582.2,3.763706]
[1727294565961,4.66311,2582.7,2582.2,7.636306]
[1727294566128,0.7912,2582.7,2582.3,0.07711903]
[1727294566325,0.7912,2582.7,2582.4,3.87227]
[1727294566553,0.8084,2583.0,2582.6,3.87205]
[1727294566723,0.8084,2583.0,2582.6,4.729402]
[1727294566922,0.8084,2583.0,2582.7,0.06919752]
[1727294567365,0.8084,2583.2,2582.6,4.729302]
[1727294567524,4.67964,2583.2,2582.6,4.729302]
[1727294567733,4.67964,2583.2,2582.7,4.3447602]
[1727294568758,3.87143,2583.1,2582.7,0.4729302]
[1727294569073,3.87143,2583.1,2582.6,3.87196]
[1727294569470,3.87143,2583.1,2582.4,4.70147]
[1727294569631,3.87148,2583.0,2582.5,3.87214]
[1727294570278,3.87143,2583.1,2582.6,3.87203]
[1727294570675,7.74288,2583.1,2582.6,3.87203]
[1727294570832,3.87153,2583.0,2582.5,4.342347]
[1727294571484,3.87163,2582.9,2582.5,4.342347]
[1727294571694,3.87143,2583.1,2582.5,0.470147]
[1727294571852,3.87142,2583.1,2582.6,3.94913631]
[1727294572194,4.67957,2583.2,2582.6,3.87195]
[1727294572340,3.87142,2583.1,2582.6,3.87195]
[1727294572540,3.87142,2583.1,2582.6,7.74394]
[1727294572846,3.87142,2583.1,2582.7,0.774394]
[1727294573090,3.87142,2583.1,2582.6,3.87195]
[1727294573383,3.87142,2583.1,2582.6,7.74394]
[1727294575299,3.87142,2583.1,2582.6,3.87195]
[1727294575862,3.87142,2583.1,2582.6,7.74394]
[1727294576488,3.87142,2583.1,2582.6,3.87195]
[1727294576689,3.87142,2583.1,2582.7,3.87191]
[1727294576900,3.87142,2583.1,2582.7,4.646296]
[1727294577055,0.8084,2583.2,2582.8,3.94881693]
[1727294577397,4.67957,2583.2,2582.8,3.94881693]
[1727294577575,4.67957,2583.2,2582.8,0.07707693]
[1727294577987,4.67957,2583.2,2582.7,4.646226]
[1727294578159,3.87134,2583.1,2582.8,0.8518176]
[1727294578792,0.8084,2583.2,2582.9,0.07707701]
[1727294578994,4.67965,2583.2,2582.6,7.7439]
[1727294579181,4.67965,2583.2,2582.7,4.64623]
[1727294579548,0.8084,2583.2,2582.8,3.94883077]
[1727294579750,3.87107,2583.3,2582.8,4.68888]
[1727294580563,3.87117,2583.2,2582.8,4.68888]
[1727294580922,3.87107,2583.3,2582.8,4.68888]
[1727294581219,7.74217,2583.3,2582.9,0.546327]
[1727294581557,3.87107,2583.3,2582.9,0.546327]
[1727294581963,7.7422,2583.3,2582.9,0.546327]
[1727294582158,3.87107,2583.3,2582.9,0.546327]
[1727294583364,3.87087,2583.4,2582.9,7.74314]
[1727294583708,4.6921102,2583.5,2583.0,3.87146]
[1727294583859,0.0262902,2583.5,2583.3,3.871]
[1727294584067,0.0262902,2583.5,2583.4,4.63736]
[1727294584262,0.0262902,2583.5,2583.4,6.038196]
[1727294584802,0.0262902,2583.5,2583.4,6.11518713]
[1727294585174,0.0262902,2583.5,2583.4,6.038196]
[1727294589525,0.0262902,2583.5,2583.4,9.038196]
[1727294590017,0.0262902,2583.5,2583.4,9.87171838]
[1727294590175,0.0262902,2583.5,2583.4,11.12199298]
[1727294590372,0.0369732,2584.2,2584.1,0.55]
[1727294590816,0.0369732,2584.2,2584.1,4.41981]
[1727294598034,0.0369732,2584.2,2584.0,3.86995]
[1727294598326,0.0369732,2584.2,2583.9,3.0]
[1727294599030,0.0369732,2584.2,2583.9,6.87009]
[1727294599233,0.0369732,2584.2,2584.1,3.86981]
[1727294600432,0.0369732,2584.2,2584.1,5.20931]
[1727294604335,0.0369732,2584.2,2584.0,4.556949]
[1727294604536,4.6864932,2584.2,2583.7,10.74064]
[1727294604742,0.8167732,2584.2,2583.8,3.8702]
[1727294604941,0.8167732,2584.2,2583.9,3.0]
[1727294605315,0.8167732,2584.2,2583.8,3.8702]
[1727294605316,3.87011,2584.0,2583.5,3.87067]
[1727294605487,3.87021,2583.9,2583.5,3.87071]
[1727294605823,0.7683,2583.8,2583.5,3.87071]
[1727294606222,4.63857,2583.8,2583.3,3.8709]
[1727294606866,0.7683,2583.8,2583.3,3.8709]
[1727294607032,5.102481,2583.8,2582.8,0.8188]
[1727294607235,3.87066,2583.6,2583.1,3.87128]
[1727294607618,4.63867,2583.8,2583.1,3.87128]
[1727294607825,3.87046,2583.7,2583.2,3.87114]
[1727294608278,3.87046,2583.7,2583.1,4.258408]
[1727294608279,3.8707,2583.6,2583.1,4.258408]
[1727294608433,3.8707,2583.6,2582.9,3.87149]
[1727294608762,3.87065,2583.6,2583.0,3.87138]
[1727294609189,0.8201,2583.3,2582.8,3.0]
[1727294609362,0.8201,2583.3,2582.7,3.87179]
[1727294609544,3.87125,2583.2,2582.7,3.87179]
[1727294610145,3.87125,2583.2,2582.7,7.74361]
[1727294610346,0.8201,2583.3,2582.8,3.87174]
[1727294610569,0.8201,2583.3,2582.8,4.646093]
[1727294611145,4.69118,2583.3,2582.8,0.774353]
[1727294611437,0.8201,2583.3,2582.9,3.8716]
[1727294611564,0.8201,2583.3,2582.9,7.74311]
[1727294611889,0.8201,2583.3,2583.0,4.7231663]
[1727294612051,0.7809,2583.6,2583.2,3.87116]
[1727294612251,0.7809,2583.6,2583.3,0.05257879]
[1727294612797,0.7809,2583.6,2583.2,3.87108]
[1727294613095,0.7809,2583.6,2583.1,3.87126]
[1727294613396,0.7809,2583.6,2583.1,0.85944663]
[1727294613562,0.7809,2583.6,2583.2,3.87102]
[1727294613763,0.7809,2583.6,2583.2,7.74209]
[1727294614891,0.7809,2583.6,2583.3,3.871]
[1727294615051,0.7866,2583.7,2583.3,3.87093]
[1727294615246,0.7866,2583.7,2583.3,4.723335]
[1727294615488,4.65705,2583.7,2583.3,0.852405]
[1727294615948,0.7866,2583.7,2583.3,0.852405]
[1727294616285,4.65701,2583.7,2583.3,0.852405]
[1727294616643,0.7866,2583.7,2583.4,0.4723425]
[1727294618992,3.87058,2583.6,2583.4,0.4723425]
[1727294619149,3.87058,2583.6,2583.1,3.87118]
[1727294619881,0.7866,2583.7,2583.2,0.07703252]
[1727294620199,4.6571,2583.7,2583.2,3.94818252]
[1727294620414,4.6571,2583.7,2583.3,0.39481825]
[1727294620618,4.6571,2583.7,2583.4,0.07702805]
[1727294620917,0.7866,2583.7,2583.4,0.07702805]
[1727294621116,0.7866,2583.7,2583.3,4.26581825]
[1727294621317,0.7866,2583.7,2583.4,4.37443975]
[1727294621613,0.7866,2583.7,2583.4,4.29741182]
[1727294623982,0.7866,2583.7,2583.4,0.42658182]
[1727294625740,0.7866,2583.7,2583.4,4.29743182]
[1727294626199,4.69933,2583.9,2583.4,4.29743182]
[1727294626535,4.69933,2583.9,2583.5,0.81683618]
[1727294626833,0.8292,2583.9,2583.6,3.87056]
[1727294626997,0.8661732,2584.2,2583.9,3.87011]
[1727294627204,0.8661732,2584.2,2584.0,0.07697576]
[1727294627417,4.7358532,2584.2,2583.8,4.67251]
[1727294627971,0.0369732,2584.2,2583.9,3.87009]
[1727294628116,0.0369732,2584.2,2584.0,0.467239]
[1727294629684,0.0369732,2584.2,2584.0,4.337189]
[1727294629822,0.0369732,2584.2,2584.1,3.86981]
[1727294631134,0.0369732,2584.2,2584.0,0.467239]
[1727294631473,0.0369732,2584.2,2584.1,0.4337339]
[1727294631835,0.0369732,2584.2,2584.1,4.3035439]
[1727294636081,0.0369732,2584.2,2584.1,0.4337339]
[1727294638953,0.8231,2584.1,2583.7,3.87029]
[1727294639282,0.8231,2584.1,2583.6,3.87052]
[1727294639283,4.69301,2584.1,2583.6,3.87048]
[1727294639484,0.8231,2584.1,2583.7,3.87033]
[1727294639686,0.8231,2584.1,2583.7,4.644411]
[1727294640049,4.69299,2584.1,2583.7,0.774081]
[1727294640270,0.8231,2584.1,2583.8,3.87023]
[1727294640591,0.0369732,2584.2,2583.8,0.8234]
[1727294640878,0.0369732,2584.2,2583.9,3.94707965]
[1727294641043,0.0369732,2584.2,2583.9,0.94105562]
[1727294642998,0.0369732,2584.2,2583.9,4.81116562]
[1727294643202,0.0369732,2584.2,2583.9,0.94105562]
[1727294643843,3.9067332,2584.2,2583.7,3.87028]
[1727294644135,3.9067332,2584.2,2583.7,7.74059]
[1727294644294,3.9067332,2584.2,2583.8,3.87025]
[1727294644499,0.0369732,2584.2,2583.8,3.87025]
[1727294644699,0.0369732,2584.2,2583.9,0.05371815]
[1727294644934,0.0369732,2584.2,2583.9,0.07698008]
[1727294646548,0.0369732,2584.2,2584.1,0.55]
[1727294646735,0.0369732,2584.2,2584.1,4.41981]
[1727294652349,0.0369732,2584.2,2584.0,3.86988]
[1727294652947,0.0369732,2584.2,2584.0,7.73976]
[1727294653150,0.0369732,2584.2,2584.0,3.86988]
[1727294653357,0.0369732,2584.2,2584.0,8.2049331]
[1727294653664,0.0369732,2584.2,2584.0,8.2049231]
[1727294654360,0.0369732,2584.2,2584.1,3.86981]
[1727294654874,0.0369732,2584.2,2584.0,4.3350431]
[1727294655487,0.0369732,2584.2,2583.8,3.87017]
[1727294655782,0.0369732,2584.2,2583.9,3.87009]
[1727294656253,0.0369732,2584.2,2583.8,3.87011]
[1727294656254,0.0369732,2584.2,2583.8,3.87016]
[1727294657559,0.0369732,2584.2,2583.8,7.74035]
[1727294657927,0.0369732,2584.2,2583.8,3.87016]
[1727294658723,0.0369732,2584.2,2583.8,4.644222]
[1727294658932,0.0369732,2584.2,2583.9,3.86998]
[1727294659667,0.0369732,2584.2,2583.6,3.87044]
[1727294659668,0.8082,2584.0,2583.6,3.87044]
[1727294659866,0.8082,2584.0,2583.6,8.127944]
[1727294660256,0.8082,2584.0,2583.7,3.87039]
[1727294661167,0.8448732,2584.2,2583.8,3.8702]
[1727294661324,0.8448732,2584.2,2583.9,3.8701]
[1727294662378,0.8448732,2584.2,2583.9,4.644149]
[1727294664670,0.8448732,2584.2,2583.9,4.644159]
[1727294664883,0.8448732,2584.2,2583.9,3.87011]
[1727294665522,1.63822685,2584.2,2583.9,3.87011]
[1727294666184,0.8448732,2584.2,2583.9,3.87011]
[1727294666385,1.63822685,2584.2,2583.9,3.87011]
[1727294667600,0.8448732,2584.2,2583.9,3.87011]
[1727294667805,1.63822685,2584.2,2583.9,3.87011]
[1727294668104,0.8448732,2584.2,2583.9,3.87011]
[1727294668304,0.8448732,2584.2,2583.9,3.87001]
[1727294668605,0.8448732,2584.2,2583.9,4.644032]
[1727294668768,0.8448732,2584.2,2584.0,3.86994]
[1727294669506,1.63822685,2584.2,2583.9,4.644032]
[1727294670693,1.63822685,2584.2,2583.9,8.514082]
[1727294670894,1.63822685,2584.2,2583.9,4.644032]
[1727294671809,0.79335365,2584.1,2583.9,4.644032]
[1727294672163,0.79335365,2584.1,2583.8,3.87025]
[1727294672368,3.87013,2583.9,2583.5,3.87063]
[1727294672569,0.79335365,2583.8,2583.5,3.87063]
[1727294673116,0.79335365,2583.8,2583.5,7.74127]
[1727294673299,0.79335365,2583.9,2583.6,3.87054]
[1727294673706,0.79335365,2583.8,2583.5,4.644856]
[1727294673915,0.79335365,2583.9,2583.5,4.644856]
[1727294674083,0.79335365,2583.8,2583.5,4.644856]
[1727294674584,0.79335365,2583.8,2583.6,3.87055]
[1727294674775,0.79335365,2583.8,2583.7,4.3348806]
[1727294675106,2.00440906,2584.0,2583.7,0.4644706]
[1727294675107,0.79335365,2583.9,2583.7,0.4644706]
[1727294675311,2.00440906,2584.0,2583.7,0.4644706]
[1727294675312,0.79335365,2583.8,2583.7,0.4644706]
[1727294675503,0.79335365,2583.9,2583.7,0.4644706]
[1727294676911,0.79335365,2583.9,2583.6,3.87055]
[1727294678796,0.7965,2583.8,2583.4,3.87076]
[1727294679007,0.7965,2583.8,2582.9,5.06794953]
[1727294679008,1.58985365,2583.8,2583.3,3.87098]
[1727294679180,0.79335365,2583.7,2583.3,0.41954499]
[1727294679381,3.87057,2583.6,2583.2,3.87112]
[1727294679714,0.79335365,2583.7,2583.3,3.87093]
[1727294680319,0.79335365,2583.7,2583.4,0.07704261]
[1727294680481,1.58985365,2583.8,2583.4,0.39479726]
[1727294680682,1.58985365,2583.8,2583.5,3.87062]
[1727294681099,1.58985365,2583.8,2583.6,3.87049]
[1727294681375,1.58985365,2583.8,2583.5,3.87062]
[1727294682608,1.58985365,2583.8,2583.5,7.74126]
[1727294683625,1.58985365,2583.8,2583.5,3.87062]